bitfinex/quotes_ETHUSD_20240713
["timestamp","ask_amount","ask_price","bid_price","bid_amount"]
[1720884438144,4.63746748,3166.7,3166.6,0.00504068]
[1720884438347,1.3496922,3166.7,3166.6,0.00504068]
[1720884438997,3.28777528,3166.8,3166.6,0.00504068]
[1720884439195,3.28777528,3166.9,3166.6,0.00504068]
[1720884442017,4.08677528,3166.9,3166.6,0.00504068]
[1720884442269,3.28777528,3166.8,3166.6,0.00504068]
[1720884445407,2.7394586,3166.7,3166.6,0.00504068]
[1720884445976,2.7394586,3166.7,3166.6,2.43244068]
[1720884446981,2.7394586,3166.8,3166.6,2.43244068]
[1720884447482,2.7394586,3166.7,3166.6,2.43244068]
[1720884447883,2.7394586,3166.8,3166.6,2.43244068]
[1720884448093,2.7394586,3166.7,3166.6,2.43244068]
[1720884448785,2.73984878,3166.8,3166.6,2.43244068]
[1720884449007,3.28777528,3167.1,3166.6,2.43244068]
[1720884449178,2.73981726,3166.7,3166.6,2.43244068]
[1720884451818,2.74055357,3166.8,3166.6,2.43244068]
[1720884452029,2.74050264,3166.8,3166.6,2.43244068]
[1720884452386,2.74050264,3166.7,3166.6,2.43244068]
[1720884455043,2.74050264,3166.8,3166.6,2.67568475]
[1720884455259,2.32034616,3166.7,3166.6,2.67568475]
[1720884455551,2.32051701,3166.8,3166.7,0.799]
[1720884456049,2.32051701,3166.8,3166.7,3.0651]
[1720884458641,3.28777528,3167.4,3166.8,2.2661]
[1720884458938,2.32091409,3166.9,3166.8,2.2661]
[1720884459106,2.32090353,3166.9,3166.8,2.2661]
[1720884459306,2.74156729,3167.1,3166.8,2.2661]
[1720884460539,2.74156729,3167.0,3166.8,2.2661]
[1720884461930,2.74248598,3167.0,3166.8,2.2661]
[1720884465276,3.28777528,3167.3,3166.8,2.2661]
[1720884465433,2.74223637,3167.0,3166.8,2.2661]
[1720884465742,3.1844,3167.5,3166.8,2.2661]
[1720884465743,2.74223637,3167.1,3166.8,2.2661]
[1720884465931,2.74223637,3167.0,3166.8,2.2661]
[1720884466535,2.74223637,3167.1,3166.8,2.2661]
[1720884466734,2.74223637,3167.0,3166.8,2.2661]
[1720884466975,2.74223637,3166.9,3166.8,2.2661]
[1720884467438,2.74225525,3166.9,3166.8,2.2661]
[1720884468723,2.74218144,3166.9,3166.8,2.2661]
[1720884472124,2.74209181,3166.9,3166.8,2.2661]
[1720884472542,2.74207478,3166.9,3166.8,2.2661]
[1720884473766,0.18974349,3166.9,3166.8,2.2661]
[1720884474489,2.93181827,3166.9,3166.8,2.2661]
[1720884475071,2.93182678,3166.9,3166.8,2.2661]
[1720884475256,0.189752,3166.9,3166.8,2.2661]
[1720884475457,2.9317034,3166.9,3166.8,2.2661]
[1720884476188,0.1897411,3166.9,3166.8,2.2661]
[1720884478350,0.1897411,3166.9,3166.8,2.49321407]
[1720884478942,0.1896671,3166.9,3166.8,2.49321407]
[1720884479548,2.51050477,3166.9,3166.8,1.02611407]
[1720884479752,2.51050477,3166.9,3166.8,3.1336]
[1720884479753,0.1896671,3166.9,3166.8,3.1336]
[1720884479958,2.51050477,3166.9,3166.8,3.1336]
[1720884481244,2.51037912,3166.9,3166.8,3.1336]
[1720884481544,3.28777528,3167.4,3166.8,2.3346]
[1720884481737,2.74164512,3167.1,3166.8,2.3346]
[1720884481941,0.18965535,3167.0,3166.8,2.3346]
[1720884482140,0.18965535,3166.9,3166.8,2.3346]
[1720884484498,0.18964062,3166.9,3166.8,2.3346]
[1720884487787,3.28777528,3167.4,3166.8,2.3346]
[1720884488079,2.7424684,3167.1,3166.8,2.3346]
[1720884488246,0.18964197,3167.0,3166.8,2.3346]
[1720884488450,0.18964197,3166.9,3166.8,2.3346]
[1720884489762,2.51178276,3166.9,3166.8,2.3346]
[1720884490177,0.18964197,3166.9,3166.8,2.3346]
[1720884490776,0.18964197,3166.9,3166.8,3.44746407]
[1720884491171,3.28777528,3167.4,3166.8,3.44746407]
[1720884491472,2.74344746,3167.1,3166.8,3.1336]
[1720884491786,0.18957414,3167.0,3166.8,3.1336]
[1720884491946,2.7436708,3167.1,3166.8,3.1336]
[1720884491947,0.18957414,3166.9,3166.8,3.1336]
[1720884492983,2.51233698,3166.9,3166.8,3.1336]
[1720884493369,2.51244369,3166.9,3166.8,3.1336]
[1720884493576,0.18957414,3166.9,3166.8,3.1336]
[1720884494288,0.18952461,3166.9,3166.8,3.36436407]
[1720884494492,3.28777528,3167.4,3166.9,2.2515]
[1720884494685,2.74409394,3167.1,3166.9,2.2515]
[1720884494873,0.18953281,3167.0,3166.9,2.2515]
[1720884498007,0.1895311,3167.0,3166.9,2.2515]
[1720884498173,0.1895311,3167.0,3166.9,2.58793641]
[1720884500699,2.3677,3166.9,3166.6,0.00504068]
[1720884500868,4.15559863,3166.8,3166.6,0.00504068]
[1720884501074,0.86782335,3166.8,3166.6,0.00504068]
[1720884501460,0.06882335,3166.7,3166.6,0.00504068]
[1720884501665,0.39237569,3166.7,3166.6,0.00504068]
[1720884502663,3.68591036,3166.7,3166.6,0.00504068]
[1720884503099,0.39237569,3166.7,3166.6,0.00504068]
[1720884503271,3.6853667,3166.7,3166.6,0.00504068]
[1720884503610,0.39237569,3166.7,3166.6,0.00504068]
[1720884503777,3.68530557,3166.7,3166.6,0.00504068]
[1720884504370,0.39237569,3166.7,3166.6,0.00504068]
[1720884505261,3.68469063,3166.7,3166.6,0.00504068]
[1720884507178,0.39237569,3166.7,3166.6,0.00504068]
[1720884508406,3.29231494,3166.9,3166.6,0.00504068]
[1720884508909,2.74181847,3166.7,3166.6,0.00504068]
[1720884509097,3.1667,3167.1,3166.6,0.00504068]
[1720884509098,3.29231494,3166.9,3166.6,0.00504068]
[1720884509474,2.74164176,3166.7,3166.6,0.00504068]
[1720884509675,2.74165075,3166.7,3166.6,0.00504068]
[1720884510110,3.29231494,3167.0,3166.6,0.00504068]
[1720884510283,1.44490149,3166.9,3166.6,0.00504068]
[1720884510505,4.73721643,3166.9,3166.6,0.00504068]
[1720884511198,2.74153512,3166.7,3166.6,0.00504068]
[1720884511390,2.74153488,3166.7,3166.6,0.00504068]
[1720884512518,0.64590149,3166.9,3166.6,0.00504068]
[1720884512691,0.47372164,3166.8,3166.6,0.00504068]
[1720884512891,3.93821643,3166.9,3166.6,0.00504068]
[1720884513794,2.7412606,3166.7,3166.6,0.00504068]
[1720884513992,3.93821643,3166.9,3166.6,0.00504068]
[1720884514563,2.74112812,3166.7,3166.6,0.00504068]
[1720884514695,3.93821643,3166.9,3166.6,0.00504068]
[1720884514897,0.47372164,3166.8,3166.6,0.00504068]
[1720884515404,2.74101719,3166.7,3166.6,0.00504068]
[1720884517823,2.74076339,3166.7,3166.6,0.00504068]
[1720884518496,2.74076339,3166.8,3166.6,0.00504068]
[1720884519094,2.74076339,3166.7,3166.6,0.00504068]
[1720884519294,2.74076339,3166.8,3166.7,2.2571]
[1720884519703,2.74076339,3166.9,3166.7,2.2571]
[1720884521059,0.799,3167.0,3166.7,2.2571]
[1720884521347,2.74054913,3166.9,3166.7,2.2571]
[1720884521551,2.74059822,3166.9,3166.7,2.2571]
[1720884524234,4.09131494,3167.2,3166.7,2.2571]
[1720884524547,2.74058866,3166.9,3166.7,2.2571]
[1720884524756,2.74058866,3167.0,3166.7,2.48331407]
[1720884527554,3.29231494,3167.3,3166.7,2.48331407]
[1720884527764,2.74065451,3167.0,3166.7,2.2571]
[1720884528941,2.32003735,3166.9,3166.7,2.2571]
[1720884531182,4.09131494,3167.4,3166.7,2.2571]
[1720884531342,2.32002863,3166.9,3166.7,2.2571]
[1720884531670,2.74062701,3167.1,3166.8,0.22621407]
[1720884531841,2.32009289,3166.9,3166.7,2.2571]
[1720884532581,2.32009289,3166.8,3166.7,2.2571]
[1720884533564,2.650969,3166.8,3166.7,2.2571]
[1720884534253,2.65114444,3166.8,3166.7,2.2571]
[1720884534446,2.65114444,3166.8,3166.6,2.26534068]
[1720884534447,0.33087611,3166.8,3166.6,2.26534068]
[1720884534647,2.65112699,3166.8,3166.6,2.26534068]
[1720884535370,2.65112699,3166.8,3166.6,2.49187475]
[1720884537851,2.65127506,3166.8,3166.6,2.49187475]
[1720884540387,2.32039895,3166.7,3166.6,2.49187475]
[1720884541468,2.32079884,3166.7,3166.6,2.49187475]
[1720884542588,2.32079884,3166.7,3166.6,2.26534068]
[1720884542986,2.32079884,3166.7,3166.6,0.00504068]
[1720884543167,0.33087611,3166.8,3166.6,0.00504068]
[1720884543481,2.32125707,3166.7,3166.6,0.00504068]
[1720884543670,0.33087611,3166.8,3166.6,0.00504068]
[1720884543867,2.32126423,3166.7,3166.6,0.00504068]
[1720884547083,2.32185826,3166.7,3166.6,0.00504068]
[1720884547982,0.33087611,3166.8,3166.6,0.00504068]
[1720884551307,3.07420528,3166.8,3166.6,0.00504068]
[1720884553404,0.33087611,3166.8,3166.6,0.00504068]
[1720884553605,3.07420528,3166.8,3166.6,0.00504068]
[1720884553792,3.07510181,3166.8,3166.6,0.00504068]
[1720884554196,3.07510199,3166.8,3166.6,0.00504068]
[1720884557002,3.07568079,3166.8,3166.6,0.00504068]
[1720884557194,3.38324887,3166.8,3166.6,0.00504068]
[1720884557398,2.74480468,3166.7,3166.6,0.00504068]
[1720884558205,0.06882335,3166.7,3166.6,0.00504068]
[1720884561423,2.81463378,3166.7,3166.6,0.00504068]
[1720884561590,2.74581043,3166.7,3166.6,0.00504068]
[1720884562194,0.39969946,3166.8,3166.6,0.00504068]
[1720884564026,0.06882335,3166.7,3166.6,0.00504068]
[1720884568125,2.81538228,3166.7,3166.6,0.00504068]
[1720884568319,0.06882335,3166.7,3166.6,0.00504068]
[1720884568524,2.81537795,3166.7,3166.6,0.00504068]
[1720884568894,2.81537795,3166.7,3166.6,2.36584068]
[1720884569115,2.7465546,3166.7,3166.6,2.36584068]
[1720884569937,2.74658586,3166.7,3166.6,2.36584068]
[1720884570134,0.33087611,3166.8,3166.6,2.36584068]
[1720884570430,2.74666632,3166.7,3166.6,2.36584068]
[1720884570595,0.33087611,3166.8,3166.6,2.36584068]
[1720884571021,2.7466543,3166.7,3166.6,2.36584068]
[1720884571224,0.33087611,3166.8,3166.6,0.00504068]
[1720884571422,0.39969946,3166.8,3166.6,0.00504068]
[1720884573722,3.6920144,3166.8,3166.6,0.00504068]
[1720884574041,0.39969946,3166.8,3166.6,0.00504068]
[1720884574239,0.33087611,3166.8,3166.6,0.00504068]
[1720884574426,0.39969946,3166.8,3166.6,0.00504068]
[1720884574797,3.6920144,3166.8,3166.6,0.00504068]
[1720884575103,0.39969946,3166.8,3166.6,0.00504068]
[1720884575427,3.6920144,3166.8,3166.6,0.00504068]
[1720884581612,0.39969946,3166.8,3166.6,0.00504068]
[1720884584423,0.33087611,3166.8,3166.7,2.3307]
[1720884584625,3.07768022,3166.8,3166.7,2.56427407]
[1720884585342,0.33087611,3166.8,3166.7,2.56427407]
[1720884585554,3.07762302,3166.8,3166.7,2.56427407]
[1720884585718,3.07762294,3166.8,3166.7,2.56427407]
[1720884587010,0.33087611,3166.8,3166.7,2.56427407]
[1720884587246,3.07753846,3166.8,3166.7,2.56427407]
[1720884587847,0.33087611,3166.8,3166.7,2.56427407]
[1720884588840,3.07741419,3166.8,3166.7,2.56427407]
[1720884589434,0.33087611,3166.8,3166.7,2.56427407]
[1720884589720,3.07741419,3166.8,3166.7,2.56427407]
[1720884589920,0.33087611,3166.8,3166.7,2.56427407]
[1720884591053,3.07720396,3166.8,3166.7,2.56427407]
[1720884591223,0.33087611,3166.8,3166.7,2.56427407]
[1720884593663,0.33087611,3166.8,3166.7,2.3307]
[1720884593821,3.0770189,3166.8,3166.7,2.3307]
[1720884594564,3.0770189,3166.8,3166.6,0.00504068]
[1720884595428,3.07690276,3166.8,3166.6,0.00504068]
[1720884597349,0.33087611,3166.8,3166.6,0.00504068]
[1720884597544,3.07690276,3166.8,3166.6,0.00504068]
[1720884598752,3.0767379,3166.8,3166.6,0.00504068]
[1720884600948,0.33087611,3166.8,3166.6,0.00504068]
[1720884601582,3.07663495,3166.8,3166.6,0.00504068]
[1720884601748,0.33087611,3166.8,3166.6,0.00504068]
[1720884601955,3.07665287,3166.8,3166.6,0.00504068]
[1720884602460,0.33087611,3166.8,3166.6,0.00504068]
[1720884602662,3.07665287,3166.8,3166.6,0.00504068]
[1720884603674,0.33087611,3166.8,3166.6,0.00504068]
[1720884603987,3.07665287,3166.8,3166.6,0.00504068]
[1720884604546,3.07653738,3166.8,3166.6,0.00504068]
[1720884606490,0.33087611,3166.8,3166.6,0.00504068]
[1720884607004,0.33087611,3166.8,3166.7,2.3493]
[1720884607201,0.33087611,3166.8,3166.7,0.799]
[1720884607376,2.65501825,3166.8,3166.7,3.1483]
[1720884607795,0.33087611,3166.8,3166.7,3.1483]
[1720884608099,2.65487057,3166.8,3166.7,3.1483]
[1720884608407,2.65487057,3166.8,3166.7,3.46363407]
[1720884609203,0.33087611,3166.8,3166.7,3.46363407]
[1720884609587,0.33087611,3166.8,3166.7,2.66463407]
[1720884609906,2.65487057,3166.8,3166.7,2.66463407]
[1720884610478,0.33087611,3166.8,3166.7,2.66463407]
[1720884610690,2.65451186,3166.8,3166.7,2.66463407]
[1720884610912,0.33087611,3166.8,3166.7,2.66463407]
[1720884611230,2.65450633,3166.8,3166.7,2.66463407]
[1720884611592,0.33087611,3166.8,3166.7,2.66463407]
[1720884611890,2.32341845,3167.0,3166.8,2.3493]
[1720884612093,2.32341845,3167.1,3166.9,3.35569341]
[1720884612316,2.3629,3168.3,3167.1,4.5595]
[1720884612317,2.32341845,3167.5,3167.1,4.5595]
[1720884612530,2.32341845,3167.9,3167.4,3.00897]
[1720884612681,2.32341845,3167.9,3167.5,2.3232]
[1720884613007,2.32341845,3167.9,3167.5,5.3232]
[1720884613215,2.32341845,3168.0,3167.5,5.3232]
[1720884613374,2.74521845,3168.3,3167.5,6.1222]
[1720884613375,2.32341845,3167.9,3167.5,6.1222]
[1720884613711,2.32341845,3167.9,3167.1,2.3232]
[1720884613712,2.32341845,3167.6,3167.1,2.3232]
[1720884613871,2.32341845,3167.5,3167.1,5.3232]
[1720884614079,2.32341845,3167.6,3167.1,6.59652]
[1720884614374,2.3202499,3167.6,3167.1,6.59652]
[1720884614575,2.3202499,3167.5,3167.1,5.3232]
[1720884614776,2.32029813,3167.5,3167.1,5.3232]
[1720884615624,2.32029813,3167.6,3167.1,5.3232]
[1720884615832,2.32029813,3167.5,3167.1,2.3232]
[1720884616314,2.32029813,3167.6,3167.1,2.3232]
[1720884616486,2.55921028,3167.6,3167.0,7.41]
[1720884616812,2.32029813,3167.3,3167.0,7.41]
[1720884616984,2.32029813,3167.2,3167.0,7.41]
[1720884617180,2.32029813,3167.1,3167.0,7.41]
[1720884617380,0.3077355,3167.6,3167.0,7.41]
[1720884617693,2.31980755,3167.1,3167.0,7.41]
[1720884617894,2.74027267,3167.3,3167.0,7.41]
[1720884618314,2.74027267,3167.2,3166.6,0.00504068]
[1720884618476,2.32000838,3167.0,3166.6,0.00504068]
[1720884618677,2.32000838,3166.9,3166.6,0.00504068]
[1720884620303,2.32000838,3167.0,3166.6,0.00504068]
[1720884620498,2.32000838,3166.9,3166.6,0.00504068]
[1720884621017,0.23945717,3166.8,3166.6,0.00504068]
[1720884621175,0.23945717,3166.7,3166.6,0.00504068]
[1720884621698,0.23945717,3166.7,3166.6,0.97886475]
[1720884622896,0.23945717,3166.7,3166.6,3.35716475]
[1720884623098,2.32017255,3167.1,3166.6,3.90716475]
[1720884623293,0.23929324,3167.0,3166.6,3.90716475]
[1720884623911,2.55946579,3167.0,3166.6,3.90716475]
[1720884624110,0.23934029,3166.9,3166.6,3.90716475]
[1720884624303,0.23934029,3166.8,3166.6,3.90716475]
[1720884624500,2.32036282,3167.0,3166.6,3.90716475]
[1720884624704,0.23933748,3166.9,3166.6,3.90716475]
[1720884625085,0.23933748,3166.9,3166.6,2.38334068]
[1720884625291,2.5597003,3166.9,3166.6,2.38334068]
[1720884625520,0.23933748,3166.8,3166.6,2.38334068]
[1720884625686,0.23933748,3166.7,3166.6,2.38334068]
[1720884626909,0.23933748,3166.7,3166.6,0.00504068]
[1720884627114,0.06882335,3167.3,3166.6,0.00504068]
[1720884627387,2.32090068,3166.9,3166.6,0.00504068]
[1720884627590,0.23941191,3166.8,3166.6,0.00504068]
[1720884629291,2.56031259,3166.8,3166.6,0.00504068]
[1720884629486,0.23941191,3166.7,3166.6,0.00504068]
[1720884630714,0.57367383,3167.3,3166.6,0.00504068]
[1720884631022,2.32129655,3166.8,3166.6,0.00504068]
[1720884631221,0.23942501,3166.7,3166.6,0.00504068]
[1720884634122,0.23943644,3166.7,3166.6,0.00504068]
[1720884634547,2.4034,3167.0,3166.6,0.00504068]
[1720884634713,2.32151367,3166.7,3166.6,0.00504068]
[1720884635028,2.56099209,3166.7,3166.6,0.00504068]
[1720884637420,2.56098973,3166.7,3166.6,0.00504068]
[1720884639905,0.23948768,3166.7,3166.6,0.00504068]
[1720884640098,2.56096166,3166.7,3166.6,0.00504068]
[1720884640858,2.56097738,3166.7,3166.6,0.00504068]
[1720884642536,0.23952029,3166.7,3166.6,0.00504068]
[1720884642902,2.56097738,3166.7,3166.6,0.00504068]
[1720884643116,0.23952029,3166.7,3166.6,0.00504068]
[1720884643314,2.56097738,3166.7,3166.6,0.00504068]
[1720884644100,0.06882335,3167.1,3166.6,0.00504068]
[1720884644329,2.32131307,3166.7,3166.6,0.00504068]
[1720884644531,0.06882335,3167.1,3166.6,0.00504068]
[1720884644736,2.32129602,3166.7,3166.6,0.00504068]
[1720884645029,2.56077962,3166.7,3166.6,0.00504068]
[1720884647240,0.06882335,3167.1,3166.6,0.00504068]
[1720884647445,2.32132156,3166.7,3166.6,0.00504068]
[1720884647618,0.23949631,3166.7,3166.6,0.00504068]
[1720884647808,2.56082017,3166.7,3166.6,0.00504068]
[1720884648005,0.23949631,3166.7,3166.6,0.00504068]
[1720884648753,2.5607961,3166.7,3166.6,0.00504068]
[1720884649058,0.23949631,3166.7,3166.6,0.00504068]
[1720884649419,0.23949631,3166.8,3166.6,0.00504068]
[1720884649861,2.32123775,3166.7,3166.6,0.00504068]
[1720884650158,2.56072995,3166.7,3166.6,0.00504068]
[1720884650545,0.2395069,3166.7,3166.6,0.00504068]
[1720884650744,0.53765206,3166.7,3166.6,0.00504068]
[1720884650911,0.29814516,3166.7,3166.6,0.00504068]
[1720884651261,0.53772946,3166.7,3166.6,0.00504068]
[1720884653457,0.2395843,3166.7,3166.6,0.00504068]
[1720884654443,0.23956826,3166.7,3166.6,0.00504068]
[1720884656412,0.23956826,3166.7,3166.6,2.48514068]
[1720884656413,2.56030388,3166.7,3166.6,2.48514068]
[1720884656726,0.23956826,3166.7,3166.6,2.48514068]
[1720884656926,2.56030388,3166.7,3166.6,2.48514068]
[1720884657644,3.69202455,3167.3,3166.6,2.48514068]
[1720884657837,2.32063237,3166.8,3166.6,2.48514068]
[1720884658033,2.56009427,3166.7,3166.6,2.48514068]
[1720884658257,2.56025734,3166.7,3166.6,2.48514068]
[1720884658735,0.23949004,3166.7,3166.6,2.48514068]
[1720884658920,2.56025734,3166.7,3166.6,2.48514068]
[1720884659432,0.23949004,3166.7,3166.6,2.48514068]
[1720884659659,2.56151211,3166.7,3166.6,2.48514068]
[1720884659834,0.23949004,3166.7,3166.6,2.48514068]
[1720884660473,2.56208108,3166.7,3166.6,2.48514068]
[1720884660617,3.6232012,3167.3,3166.6,2.73365475]
[1720884660820,3.6232012,3167.3,3166.6,2.48514068]
[1720884661019,2.32255624,3166.7,3166.6,2.48514068]
[1720884661233,0.23943811,3166.7,3166.6,2.48514068]
[1720884661832,2.56259733,3166.7,3166.6,2.48514068]
[1720884662033,2.56249928,3166.7,3166.6,2.48514068]
[1720884662251,2.56249928,3166.7,3166.6,2.73365475]
[1720884663537,2.32402349,3166.7,3166.6,2.73365475]
[1720884663770,0.23934184,3166.7,3166.6,2.73365475]
[1720884664148,2.56339133,3166.7,3166.6,2.73365475]
[1720884664642,0.23934184,3166.7,3166.6,2.73365475]
[1720884664887,2.56337355,3166.7,3166.6,2.73365475]
[1720884665772,2.56332248,3166.7,3166.6,2.73365475]
[1720884665984,0.23934184,3166.7,3166.6,2.73365475]
[1720884666747,0.23927274,3166.7,3166.6,2.73365475]
[1720884667504,2.56312983,3166.7,3166.6,2.73365475]
[1720884667644,2.56312983,3166.7,3166.6,2.48514068]
[1720884669649,0.23927274,3166.7,3166.6,2.48514068]
[1720884670076,2.32385709,3166.8,3166.6,2.48514068]
[1720884670278,0.23930379,3166.7,3166.6,2.48514068]
[1720884670496,2.56316088,3166.7,3166.6,2.48514068]
[1720884670713,2.56331959,3166.7,3166.6,2.48514068]
[1720884672248,2.56331959,3166.7,3166.6,2.81345475]
[1720884673254,2.56331959,3166.7,3166.6,2.48514068]
[1720884673255,2.56342691,3166.7,3166.6,2.48514068]
[1720884673456,0.06882335,3167.2,3166.6,2.48514068]
[1720884673678,3.6232012,3167.3,3166.6,2.48514068]
[1720884673679,2.32411894,3166.7,3166.6,2.48514068]
[1720884673874,2.56350029,3166.7,3166.6,2.48514068]
[1720884675204,2.56350029,3166.7,3166.6,2.73365475]
[1720884676491,2.56350029,3166.7,3166.6,2.48514068]
[1720884676894,2.56346511,3166.7,3166.6,2.48514068]
[1720884677083,2.56346512,3166.7,3166.6,2.48514068]
[1720884680321,2.56337607,3166.7,3166.6,2.48514068]
[1720884680807,2.56337843,3166.7,3166.6,2.48514068]
[1720884683479,2.56332742,3166.7,3166.6,2.48514068]
[1720884683692,2.56332783,3166.7,3166.6,2.48514068]
[1720884686608,0.23938009,3166.7,3166.6,2.48514068]
[1720884686838,0.2394303,3166.8,3166.6,2.48514068]
[1720884687133,0.2394303,3166.7,3166.6,2.48514068]
[1720884687589,0.2394303,3166.7,3166.6,0.00504068]
[1720884687796,3.28315343,3166.7,3166.6,0.00504068]
[1720884688013,2.98468494,3166.7,3166.6,0.00504068]
[1720884688630,2.9849304,3166.7,3166.6,0.00504068]
[1720884688824,0.2394303,3166.7,3166.6,0.00504068]
[1720884690113,0.23965647,3166.7,3166.6,0.00504068]
[1720884691263,0.69093595,3166.7,3166.6,0.00504068]
[1720884693436,0.69091829,3166.7,3166.6,0.00504068]
[1720884693806,0.45127948,3166.7,3166.6,0.00504068]
[1720884694040,0.69091778,3166.7,3166.6,0.00504068]
[1720884694857,3.94894113,3166.7,3166.6,0.00504068]
[1720884695065,3.49766165,3166.7,3166.6,0.00504068]
[1720884695713,2.58566165,3166.7,3166.6,0.00504068]
[1720884696631,2.58571809,3166.7,3166.6,0.00504068]
[1720884696812,0.30851809,3166.7,3166.6,0.00504068]
[1720884697040,0.89627444,3166.7,3166.6,0.00504068]
[1720884698361,0.30847114,3166.7,3166.6,0.00504068]
[1720884698924,0.23964779,3166.7,3166.6,2.29854068]
[1720884699231,2.98300509,3166.7,3166.6,2.29854068]
[1720884699453,0.23964779,3166.7,3166.6,2.29854068]
[1720884700000,2.74324648,3166.8,3166.6,2.29854068]
[1720884700135,0.23949929,3166.7,3166.6,2.29854068]
[1720884701877,2.56170637,3166.7,3166.6,2.29854068]
[1720884702571,0.23949929,3166.7,3166.6,2.61959475]
[1720884702967,0.23949929,3166.7,3166.6,3.53159475]
[1720884703273,3.29231494,3167.6,3166.7,2.2935]
[1720884703473,2.32196552,3167.0,3166.7,2.2935]
[1720884703675,0.23932062,3166.9,3166.8,1.32015948]
[1720884705628,0.23932062,3166.9,3166.8,3.61365948]
[1720884706653,0.23922248,3166.9,3166.8,3.61365948]
[1720884707934,0.23922248,3166.9,3166.8,4.16365948]
[1720884708129,2.32151911,3167.3,3166.8,4.08058948]
[1720884708358,0.23908619,3167.2,3167.1,3.2055]
[1720884708741,0.23908619,3167.2,3167.1,3.7555]
[1720884709450,2.32151911,3167.8,3167.2,2.2935]
[1720884709649,2.32151911,3167.8,3167.1,1.462]
[1720884709650,2.32151911,3167.8,3167.5,2.2935]
[1720884709967,0.33083119,3168.1,3167.5,2.2935]
[1720884710264,2.31998414,3167.8,3167.5,2.2935]
[1720884710445,0.23894536,3167.7,3167.6,0.32055]
[1720884710652,0.23893052,3167.7,3167.6,0.32055]
[1720884713135,0.33083119,3168.1,3167.6,0.32055]
[1720884713471,2.55688125,3168.0,3167.6,0.32055]
[1720884713668,0.23896991,3167.9,3167.6,0.32055]
[1720884713853,0.23896991,3167.8,3167.6,0.32055]
[1720884714061,2.31791134,3168.0,3167.6,0.32055]
[1720884714062,0.23896991,3167.7,3167.6,0.32055]
[1720884714844,2.64874253,3168.1,3167.6,0.32055]
[1720884715059,0.2388999,3168.0,3167.6,0.32055]
[1720884715375,0.2388999,3167.9,3167.6,0.32055]
[1720884715580,0.2388999,3167.8,3167.6,0.32055]
[1720884715777,2.64874253,3168.1,3167.6,0.32055]
[1720884715947,0.02965739,3167.7,3167.6,0.32055]
[1720884716147,0.33083119,3168.1,3167.7,2.2748]
[1720884716348,0.23885982,3168.0,3167.7,2.2748]
[1720884716549,0.23888118,3167.9,3167.7,2.2748]
[1720884716748,0.02965845,3168.0,3167.7,2.2748]
[1720884716939,0.2388807,3167.9,3167.7,2.2748]
[1720884717138,0.2388807,3167.8,3167.7,2.2748]
[1720884717339,0.02965809,3167.9,3167.7,2.2748]
[1720884717591,0.02965717,3167.8,3167.7,2.2748]
[1720884717745,0.33083119,3168.1,3167.7,2.2748]
[1720884717946,0.26858612,3168.0,3167.7,2.2748]
[1720884718176,0.23892767,3167.9,3167.7,2.2748]
[1720884718677,0.02965755,3167.8,3167.7,2.2748]
[1720884719051,0.33083119,3168.1,3167.7,2.2748]
[1720884719377,0.50361249,3168.0,3167.4,0.912]
[1720884719579,0.2667797,3167.9,3167.3,3.1868]
[1720884719879,0.02783235,3167.9,3167.4,0.55]
[1720884720061,0.23896081,3167.8,3167.4,0.55]
[1720884720255,0.02783202,3167.8,3167.4,0.55]
[1720884720455,0.02783202,3167.8,3167.3,3.1868]
[1720884720773,0.26689784,3167.7,3167.3,2.2748]
[1720884720967,0.02783169,3167.7,3167.3,2.2748]
[1720884721168,1.31165454,3168.1,3166.9,24.8148]
[1720884721169,0.23911907,3167.6,3166.9,24.8148]
[1720884721369,2.4976,3167.8,3167.0,3.0]
[1720884721370,0.26696676,3167.5,3167.0,3.0]
[1720884721569,0.02783155,3167.5,3167.0,3.0]
[1720884721782,0.23920357,3167.4,3166.9,22.7268]
[1720884721956,0.02783155,3167.5,3166.9,22.7268]
[1720884722148,0.26706826,3167.4,3166.9,3.1868]
[1720884722354,0.02783122,3167.4,3166.9,3.1868]
[1720884722680,4.81258999,3167.8,3166.9,3.1868]
[1720884722885,0.02783037,3167.3,3166.9,3.50548]
[1720884723070,2.38381334,3167.8,3166.9,3.50548]
[1720884723275,0.02783004,3167.2,3167.1,3.1868]
[1720884723483,0.06882335,3167.9,3167.1,3.1868]
[1720884723683,0.23906883,3167.8,3167.2,0.31868]
[1720884723986,2.73428191,3168.2,3167.3,0.912]
[1720884723987,0.23906883,3167.7,3167.3,0.912]
[1720884724185,2.31473601,3168.0,3167.3,0.912]
[1720884724385,0.23898975,3167.9,3167.6,2.2748]
[1720884724603,0.23898975,3167.8,3167.6,2.2748]
[1720884724882,0.02967486,3167.7,3167.6,2.2748]
[1720884725054,2.31473601,3168.1,3167.6,2.2748]
[1720884725255,0.02967486,3167.7,3167.6,2.2748]
[1720884725488,2.31473601,3168.2,3167.6,2.2748]
[1720884725690,0.02769848,3167.7,3167.6,2.2748]
[1720884726001,2.31412741,3168.1,3167.6,2.2748]
[1720884726300,0.26667136,3168.0,3167.6,2.2748]
[1720884726470,0.23897224,3167.9,3167.6,2.2748]
[1720884726667,0.02769879,3167.9,3167.6,2.2748]
[1720884726988,2.31412741,3168.2,3167.6,2.2748]
[1720884727287,0.23893215,3168.1,3167.6,2.2748]
[1720884727483,0.23893215,3168.0,3167.6,2.2748]
[1720884727801,0.23893215,3167.9,3167.6,2.2748]
[1720884727976,0.02769912,3168.0,3167.6,2.2748]
[1720884728180,0.02784339,3167.8,3167.6,2.2748]
[1720884728377,2.54554015,3168.2,3167.6,2.2748]
[1720884728685,0.49351851,3168.1,3167.6,2.2748]
[1720884728886,0.28239839,3168.1,3167.6,2.2748]
[1720884729066,0.23896558,3168.0,3167.6,2.2748]
[1720884729266,0.23896558,3167.9,3167.6,2.2748]
[1720884729472,0.02784372,3167.9,3167.6,2.2748]
[1720884729650,2.54509366,3168.2,3167.6,2.2748]
[1720884729850,0.02784339,3167.8,3167.6,2.2748]
[1720884730089,2.31368092,3168.2,3167.6,2.2748]
[1720884730291,0.02784306,3167.7,3167.6,2.2748]
[1720884730488,2.31368092,3168.2,3167.6,2.2748]
[1720884730786,0.02784306,3167.7,3167.6,2.2748]
[1720884730954,2.31368092,3168.2,3167.6,2.2748]
[1720884731157,0.23896898,3168.1,3167.6,2.2748]
[1720884731350,0.23896898,3168.0,3167.6,2.2748]
[1720884731585,0.23896898,3167.9,3167.6,2.2748]
[1720884731792,0.02783197,3167.9,3167.6,2.50228]
[1720884732198,2.31368092,3168.2,3167.6,2.50228]
[1720884732484,0.23895169,3168.1,3167.6,2.50228]
[1720884732654,0.23895169,3168.0,3167.6,2.50228]
[1720884732856,2.31317044,3168.3,3167.6,2.50228]
[1720884733058,0.02783197,3167.9,3167.6,2.50228]